[Event "Late-Titled-Tuesday-Blitz-August-29-2023"]
[Site "Chess.com"]
[Date "2023.08.29"]
[Round "8"]
[White "Fandorine"]
[Black "nihalsarin"]
[Result "1/2-1/2"]
[WhiteElo "2927"]
[BlackElo "3106"]
[TimeControl "180+1"]
[EndTime "15:29:05 PDT"]
[Termination "Game drawn by repetition"]

1. e4 {[%clk 0:03:00.9]} 1... Nc6 {[%clk 0:02:52]} 2. Nf3 {[%clk 0:03:00]} 2...
d6 {[%clk 0:02:52.2]} 3. d4 {[%clk 0:02:59.7]} 3... Nf6 {[%clk 0:02:51.9]} 4. c3
{[%clk 0:02:52.8]} 4... g6 {[%clk 0:02:50.5]} 5. Bd3 {[%clk 0:02:49]} 5... Bg7
{[%clk 0:02:50.7]} 6. O-O {[%clk 0:02:49.6]} 6... O-O {[%clk 0:02:51.3]} 7. Nbd2
{[%clk 0:02:50.2]} 7... e5 {[%clk 0:02:52]} 8. h3 {[%clk 0:02:46.8]} 8... Re8
{[%clk 0:02:49.4]} 9. Re1 {[%clk 0:02:47.2]} 9... Nh5 {[%clk 0:02:46.1]} 10. Nf1
{[%clk 0:02:47.2]} 10... Bd7 {[%clk 0:02:38.9]} 11. Be3 {[%clk 0:02:42.6]} 11...
a6 {[%clk 0:02:36.7]} 12. a4 {[%clk 0:02:39.9]} 12... exd4 {[%clk 0:02:32.6]}
13. Nxd4 {[%clk 0:02:35.6]} 13... Nxd4 {[%clk 0:02:29.7]} 14. cxd4 {[%clk
0:02:33.3]} 14... c5 {[%clk 0:02:25.2]} 15. dxc5 {[%clk 0:02:24.5]} 15... dxc5
{[%clk 0:02:26.1]} 16. Bxc5 {[%clk 0:02:24.9]} 16... Bc6 {[%clk 0:02:23.8]} 17.
Bc4 {[%clk 0:02:14.5]} 17... Qxd1 {[%clk 0:02:05.1]} 18. Raxd1 {[%clk
0:02:13.6]} 18... Bxb2 {[%clk 0:02:05]} 19. Bd5 {[%clk 0:01:50]} 19... Rac8
{[%clk 0:02:03.8]} 20. Bxc6 {[%clk 0:01:28]} 20... Rxc6 {[%clk 0:02:04.7]} 21.
Bd4 {[%clk 0:01:28.7]} 21... Bxd4 {[%clk 0:01:56.6]} 22. Rxd4 {[%clk 0:01:28.2]}
22... Nf4 {[%clk 0:01:57.3]} 23. Ng3 {[%clk 0:01:22.9]} 23... Rc2 {[%clk
0:01:45.4]} 24. e5 {[%clk 0:01:17.8]} 24... Ne6 {[%clk 0:01:41.5]} 25. Rd7
{[%clk 0:01:04.3]} 25... Rb8 {[%clk 0:01:34.2]} 26. a5 {[%clk 0:00:58.7]} 26...
Rc5 {[%clk 0:01:28.7]} 27. Ne4 {[%clk 0:00:51.4]} 27... Rxa5 {[%clk 0:01:29.2]}
28. Nd6 {[%clk 0:00:51.8]} 28... Rd5 {[%clk 0:01:29.4]} 29. Re7 {[%clk
0:00:36.6]} 29... Rf8 {[%clk 0:00:55.2]} 30. Nxf7 {[%clk 0:00:27.9]} 30... Rxf7
{[%clk 0:00:44.9]} 31. Rxe6 {[%clk 0:00:28.3]} 31... Rd2 {[%clk 0:00:45.6]} 32.
f3 {[%clk 0:00:26.7]} 32... Rc7 {[%clk 0:00:43.3]} 33. Re4 {[%clk 0:00:26.5]}
33... a5 {[%clk 0:00:36.7]} 34. h4 {[%clk 0:00:25]} 34... b5 {[%clk 0:00:27.8]}
35. Re8+ {[%clk 0:00:19.2]} 35... Kf7 {[%clk 0:00:22.5]} 36. Rb8 {[%clk
0:00:13.1]} 36... b4 {[%clk 0:00:17.3]} 37. e6+ {[%clk 0:00:13.6]} 37... Ke7
{[%clk 0:00:17.8]} 38. Rh8 {[%clk 0:00:14.4]} 38... Kf6 {[%clk 0:00:07.8]} 39.
Rf8+ {[%clk 0:00:12.2]} 39... Kg7 {[%clk 0:00:08.5]} 40. Ra8 {[%clk 0:00:09.3]}
40... Re7 {[%clk 0:00:01.9]} 41. Rxa5 {[%clk 0:00:08.5]} 41... b3 {[%clk
0:00:02.6]} 42. Rb5 {[%clk 0:00:08.7]} 42... b2 {[%clk 0:00:03.3]} 43. Kh2
{[%clk 0:00:08.9]} 43... Rd6 {[%clk 0:00:03.6]} 44. Rxb2 {[%clk 0:00:07.9]}
44... Rdxe6 {[%clk 0:00:04.5]} 45. Rxe6 {[%clk 0:00:08.2]} 45... Rxe6 {[%clk
0:00:05.4]} 46. Kg3 {[%clk 0:00:08.8]} 46... h5 {[%clk 0:00:05.9]} 47. Rb7+
{[%clk 0:00:09.1]} 47... Kf6 {[%clk 0:00:06.1]} 48. Rb4 {[%clk 0:00:09.7]} 48...
Ra6 {[%clk 0:00:06.4]} 49. Rf4+ {[%clk 0:00:10.3]} 49... Kg7 {[%clk 0:00:06.6]}
50. Rc4 {[%clk 0:00:11.1]} 50... Kf6 {[%clk 0:00:06.3]} 51. Kf4 {[%clk
0:00:11.1]} 51... Ra2 {[%clk 0:00:05.8]} 52. g3 {[%clk 0:00:11.3]} 52... Rb2
{[%clk 0:00:05.6]} 53. Rc6+ {[%clk 0:00:11]} 53... Kg7 {[%clk 0:00:06.2]} 54.
Re6 {[%clk 0:00:10.5]} 54... Rb4+ {[%clk 0:00:06.1]} 55. Re4 {[%clk 0:00:10.8]}
55... Rb5 {[%clk 0:00:06.1]} 56. Re5 {[%clk 0:00:11.3]} 56... Rb3 {[%clk
0:00:06.5]} 57. Rd5 {[%clk 0:00:10.2]} 57... Kf6 {[%clk 0:00:05.4]} 58. Ke4
{[%clk 0:00:10.1]} 58... Rb4+ {[%clk 0:00:05]} 59. Rd4 {[%clk 0:00:10.6]} 59...
Rb3 {[%clk 0:00:05.6]} 60. Rd6+ {[%clk 0:00:10.8]} 60... Kf7 {[%clk 0:00:05.7]}
61. Rd3 {[%clk 0:00:11.1]} 61... Rb5 {[%clk 0:00:05.6]} 62. Rd5 {[%clk
0:00:07.9]} 62... Rb3 {[%clk 0:00:05.8]} 63. Ra5 {[%clk 0:00:07.7]} 63... Kf6
{[%clk 0:00:06.1]} 64. Ra4 {[%clk 0:00:08.2]} 64... Kf7 {[%clk 0:00:05.7]} 65.
Kf4 {[%clk 0:00:08.4]} 65... Kf6 {[%clk 0:00:05.2]} 66. g4 {[%clk 0:00:05.8]}
66... hxg4 {[%clk 0:00:05]} 67. fxg4 {[%clk 0:00:05.8]} 67... g5+ {[%clk
0:00:03.7]} 68. hxg5+ {[%clk 0:00:05.7]} 68... Kg6 {[%clk 0:00:04.4]} 69. Ra6+
{[%clk 0:00:06.3]} 69... Kg7 {[%clk 0:00:05]} 70. g6 {[%clk 0:00:05.3]} 70...
Rb5 {[%clk 0:00:05]} 71. Rd6 {[%clk 0:00:04.7]} 71... Rc5 {[%clk 0:00:05]} 72.
Re6 {[%clk 0:00:05.2]} 72... Ra5 {[%clk 0:00:05.3]} 73. Rb6 {[%clk 0:00:05.2]}
73... Rc5 {[%clk 0:00:05.6]} 74. Kg3 {[%clk 0:00:05.7]} 74... Ra5 {[%clk
0:00:04.3]} 75. Kh4 {[%clk 0:00:06.1]} 75... Rc5 {[%clk 0:00:04.9]} 76. Rd6
{[%clk 0:00:05.9]} 76... Ra5 {[%clk 0:00:05]} 77. g5 {[%clk 0:00:06.3]} 77...
Ra1 {[%clk 0:00:04.8]} 78. Kh5 {[%clk 0:00:06.7]} 78... Rh1+ {[%clk 0:00:05.1]}
79. Kg4 {[%clk 0:00:07.4]} 79... Rg1+ {[%clk 0:00:06]} 80. Kf5 {[%clk
0:00:07.8]} 80... Rf1+ {[%clk 0:00:06.7]} 81. Kg4 {[%clk 0:00:08.3]} 81... Rg1+
{[%clk 0:00:07.2]} 82. Kh5 {[%clk 0:00:08.9]} 82... Rh1+ {[%clk 0:00:07.7]} 83.
Kg4 {[%clk 0:00:09.6]} 83... Rg1+ {[%clk 0:00:08.6]} 1/2-1/2

[Event "Late-Titled-Tuesday-Blitz-August-29-2023"]
[Site "Chess.com"]
[Date "2023.08.29"]
[Round "8"]
[White "eldur16"]
[Black "DawidCzerw"]
[Result "0-1"]
[WhiteElo "2612"]
[BlackElo "2506"]
[TimeControl "180+1"]
[EndTime "15:29:11 PDT"]
[Termination "DawidCzerw won on time"]

1. e4 {[%clk 0:03:00.9]} 1... c5 {[%clk 0:02:59.7]} 2. Ne2 {[%clk 0:03:00]} 2...
Nc6 {[%clk 0:02:59.2]} 3. Nbc3 {[%clk 0:02:56.9]} 3... g6 {[%clk 0:02:58.9]} 4.
g3 {[%clk 0:02:53.6]} 4... Bg7 {[%clk 0:02:59.1]} 5. Bg2 {[%clk 0:02:53.8]} 5...
e5 {[%clk 0:02:59.5]} 6. Nd5 {[%clk 0:02:52.4]} 6... Nge7 {[%clk 0:02:59.6]} 7.
Nec3 {[%clk 0:02:52.5]} 7... d6 {[%clk 0:03:00]} 8. d3 {[%clk 0:02:52.3]} 8...
Rb8 {[%clk 0:02:59.7]} 9. O-O {[%clk 0:02:51.2]} 9... O-O {[%clk 0:02:59.6]} 10.
f4 {[%clk 0:02:50]} 10... Nxd5 {[%clk 0:02:51.9]} 11. Nxd5 {[%clk 0:02:48.9]}
11... Ne7 {[%clk 0:02:50.9]} 12. Ne3 {[%clk 0:02:45.7]} 12... f5 {[%clk
0:02:45.6]} 13. fxe5 {[%clk 0:02:40.6]} 13... Bxe5 {[%clk 0:02:44]} 14. Nc4
{[%clk 0:02:32.8]} 14... Bd4+ {[%clk 0:02:27.7]} 15. Kh1 {[%clk 0:02:24.9]}
15... b5 {[%clk 0:02:24.3]} 16. c3 {[%clk 0:02:11.6]} 16... Bg7 {[%clk
0:02:22.5]} 17. Ne3 {[%clk 0:02:08.9]} 17... fxe4 {[%clk 0:02:20.9]} 18. Rxf8+
{[%clk 0:01:57.9]} 18... Qxf8 {[%clk 0:02:18.9]} 19. Bxe4 {[%clk 0:01:54.8]}
19... Bb7 {[%clk 0:02:04.2]} 20. Bxb7 {[%clk 0:01:53.3]} 20... Rxb7 {[%clk
0:02:04.7]} 21. Bd2 {[%clk 0:01:50.7]} 21... Nc6 {[%clk 0:01:41.1]} 22. Qg4
{[%clk 0:01:44.1]} 22... Re7 {[%clk 0:01:22.8]} 23. Rf1 {[%clk 0:01:37.9]} 23...
Qe8 {[%clk 0:01:21.3]} 24. Qf3 {[%clk 0:01:34.8]} 24... Ne5 {[%clk 0:01:12.2]}
25. Qd5+ {[%clk 0:01:33.3]} 25... Kh8 {[%clk 0:01:12.7]} 26. Qxd6 {[%clk
0:01:25.1]} 26... Rd7 {[%clk 0:01:09.7]} 27. Qxc5 {[%clk 0:01:25]} 27... Rxd3
{[%clk 0:00:56.5]} 28. Bc1 {[%clk 0:01:24.2]} 28... Qa8+ {[%clk 0:00:43.1]} 29.
Ng2 {[%clk 0:01:20.6]} 29... Rf3 {[%clk 0:00:27.7]} 30. Rxf3 {[%clk 0:01:06]}
30... Qxf3 {[%clk 0:00:26.9]} 31. h4 {[%clk 0:00:49.7]} 31... Qf1+ {[%clk
0:00:23.7]} 32. Qg1 {[%clk 0:00:47.3]} 32... Qe2 {[%clk 0:00:20.7]} 33. Qxa7
{[%clk 0:00:43.5]} 33... h5 {[%clk 0:00:19]} 34. Qg1 {[%clk 0:00:34.4]} 34...
Nf3 {[%clk 0:00:16]} 35. Nf4 {[%clk 0:00:29.7]} 35... Qe4 {[%clk 0:00:12]} 36.
Qe3 {[%clk 0:00:28]} 36... Qb1 {[%clk 0:00:02]} 37. Qe8+ {[%clk 0:00:26.5]}
37... Kh7 {[%clk 0:00:02.2]} 38. Qxg6+ {[%clk 0:00:23.2]} 38... Qxg6 {[%clk
0:00:01.3]} 39. Nxg6 {[%clk 0:00:23.3]} 39... Kxg6 {[%clk 0:00:02.2]} 40. Kg2
{[%clk 0:00:22.1]} 40... Ne5 {[%clk 0:00:02.8]} 41. Bd2 {[%clk 0:00:20]} 41...
Nc4 {[%clk 0:00:03]} 42. Bc1 {[%clk 0:00:19.8]} 42... Kf5 {[%clk 0:00:03.5]} 43.
Kf3 {[%clk 0:00:19.3]} 43... Ne5+ {[%clk 0:00:04.1]} 44. Ke2 {[%clk 0:00:18.8]}
44... Ke4 {[%clk 0:00:04.6]} 45. b3 {[%clk 0:00:18.1]} 45... Nd3 {[%clk
0:00:04.7]} 46. Bd2 {[%clk 0:00:18.3]} 46... Be5 {[%clk 0:00:04.5]} 47. a4
{[%clk 0:00:17.4]} 47... bxa4 {[%clk 0:00:04.6]} 48. bxa4 {[%clk 0:00:17.2]}
48... Bxg3 {[%clk 0:00:05.5]} 49. a5 {[%clk 0:00:17.2]} 49... Nc5 {[%clk
0:00:04.8]} 50. Bg5 {[%clk 0:00:15.3]} 50... Bc7 {[%clk 0:00:04.8]} 51. Be7
{[%clk 0:00:14.2]} 51... Na6 {[%clk 0:00:03.7]} 52. Bg5 {[%clk 0:00:13.9]} 52...
Bxa5 {[%clk 0:00:03.9]} 53. Bf6 {[%clk 0:00:13.3]} 53... Nc5 {[%clk 0:00:03.7]}
54. Bg5 {[%clk 0:00:13.2]} 54... Ne6 {[%clk 0:00:04]} 55. Be7 {[%clk 0:00:13.2]}
55... Bb6 {[%clk 0:00:01.9]} 56. Bd6 {[%clk 0:00:12.3]} 56... Ba5 {[%clk
0:00:02.2]} 57. Be7 {[%clk 0:00:11.8]} 57... Bxc3 {[%clk 0:00:02.4]} 58. Kf1
{[%clk 0:00:11.2]} 58... Be5 {[%clk 0:00:03]} 59. Kg2 {[%clk 0:00:10.7]} 59...
Kf4 {[%clk 0:00:03.6]} 60. Bg5+ {[%clk 0:00:09.8]} 60... Kg4 {[%clk 0:00:04]}
61. Be3 {[%clk 0:00:09.9]} 61... Bg3 {[%clk 0:00:04.2]} 62. Bg5 {[%clk
0:00:08.6]} 62... Bxh4 {[%clk 0:00:04.3]} 63. Be3 {[%clk 0:00:08.3]} 63... Bg3
{[%clk 0:00:04.6]} 64. Bb6 {[%clk 0:00:07.8]} 64... h4 {[%clk 0:00:04.8]} 65.
Ba7 {[%clk 0:00:06.7]} 65... h3+ {[%clk 0:00:05.3]} 66. Kh1 {[%clk 0:00:06.8]}
66... Ng5 {[%clk 0:00:05.6]} 67. Bb6 {[%clk 0:00:05.9]} 67... Ne4 {[%clk
0:00:06]} 68. Ba7 {[%clk 0:00:06.1]} 68... Bf2 {[%clk 0:00:05.6]} 69. Bb8 {[%clk
0:00:06.1]} 69... Be3 {[%clk 0:00:05.9]} 70. Bc7 {[%clk 0:00:05.7]} 70... Bf4
{[%clk 0:00:06.2]} 71. Bb6 {[%clk 0:00:05.2]} 71... Ng3+ {[%clk 0:00:06.6]} 72.
Kg1 {[%clk 0:00:04.6]} 72... Kf3 {[%clk 0:00:05.9]} 73. Kh2 {[%clk 0:00:04.6]}
73... Kg4 {[%clk 0:00:05.5]} 74. Kg1 {[%clk 0:00:04.8]} 74... Nf5 {[%clk
0:00:05.3]} 75. Kh1 {[%clk 0:00:04.2]} 75... h2 {[%clk 0:00:02.8]} 76. Kg2
{[%clk 0:00:03.4]} 76... Nh4+ {[%clk 0:00:02.2]} 77. Kh1 {[%clk 0:00:03.1]}
77... Kh3 {[%clk 0:00:02.7]} 78. Bf2 {[%clk 0:00:01.7]} 78... Nf3 {[%clk
0:00:02.4]} 0-1

[Event "Late-Titled-Tuesday-Blitz-August-29-2023"]
[Site "Chess.com"]
[Date "2023.08.29"]
[Round "8"]
[White "dropstoneDP"]
[Black "promen1999"]
[Result "1-0"]
[WhiteElo "2977"]
[BlackElo "2869"]
[TimeControl "180+1"]
[EndTime "15:29:17 PDT"]
[Termination "dropstoneDP won on time"]

1. d4 {[%clk 0:02:58.9]} 1... Nf6 {[%clk 0:02:57.1]} 2. c4 {[%clk 0:02:59.4]}
2... g6 {[%clk 0:02:57.4]} 3. f3 {[%clk 0:02:59.1]} 3... Nh5 {[%clk 0:02:55.4]}
4. Nh3 {[%clk 0:02:58]} 4... e5 {[%clk 0:02:26.1]} 5. dxe5 {[%clk 0:02:57.2]}
5... Nc6 {[%clk 0:02:18.3]} 6. Bg5 {[%clk 0:02:52.5]} 6... Be7 {[%clk
0:02:18.5]} 7. Bxe7 {[%clk 0:02:51.5]} 7... Qxe7 {[%clk 0:02:18.7]} 8. Nc3
{[%clk 0:02:50.5]} 8... Qxe5 {[%clk 0:02:18.4]} 9. Qd2 {[%clk 0:02:48.2]} 9...
O-O {[%clk 0:02:14.9]} 10. O-O-O {[%clk 0:02:46.4]} 10... d6 {[%clk 0:02:14.1]}
11. Nf2 {[%clk 0:02:46.4]} 11... Be6 {[%clk 0:02:11.6]} 12. e3 {[%clk
0:02:43.7]} 12... Qa5 {[%clk 0:02:10.8]} 13. Kb1 {[%clk 0:02:42.7]} 13... Nf6
{[%clk 0:02:08.7]} 14. h4 {[%clk 0:02:38.6]} 14... Rfe8 {[%clk 0:01:51.3]} 15.
h5 {[%clk 0:02:34]} 15... Nxh5 {[%clk 0:01:46.5]} 16. Nfe4 {[%clk 0:02:34.4]}
16... Qe5 {[%clk 0:01:33.5]} 17. g4 {[%clk 0:02:25.3]} 17... Nf6 {[%clk
0:01:24.7]} 18. Qh2 {[%clk 0:02:25.1]} 18... Nxe4 {[%clk 0:01:23.2]} 19. Qxh7+
{[%clk 0:02:24.6]} 19... Kf8 {[%clk 0:01:23.8]} 20. Nxe4 {[%clk 0:02:24.9]}
20... Bxg4 {[%clk 0:01:15.5]} 21. Qh6+ {[%clk 0:01:25.5]} 21... Qg7 {[%clk
0:01:13.5]} 22. Qf4 {[%clk 0:00:46.9]} 22... Bf5 {[%clk 0:01:12.5]} 23. Bd3
{[%clk 0:00:46.6]} 23... Ne5 {[%clk 0:01:09.7]} 24. Be2 {[%clk 0:00:41.2]} 24...
g5 {[%clk 0:01:04.5]} 25. Qg3 {[%clk 0:00:39.6]} 25... Nxf3 {[%clk 0:01:02.7]}
26. Bxf3 {[%clk 0:00:39.4]} 26... Rxe4 {[%clk 0:01:01.7]} 27. Bxe4 {[%clk
0:00:30.4]} 27... Bxe4+ {[%clk 0:01:02.6]} 28. Ka1 {[%clk 0:00:31]} 28... Bxh1
{[%clk 0:01:02.7]} 29. Rxh1 {[%clk 0:00:31.9]} 29... Re8 {[%clk 0:01:02.3]} 30.
Qf3 {[%clk 0:00:29.4]} 30... c6 {[%clk 0:00:55.8]} 31. a3 {[%clk 0:00:29.8]}
31... Re6 {[%clk 0:00:53.3]} 32. Rf1 {[%clk 0:00:29.5]} 32... Ke7 {[%clk
0:00:51.2]} 33. e4 {[%clk 0:00:29.8]} 33... Rf6 {[%clk 0:00:49]} 34. Qe2 {[%clk
0:00:27.6]} 34... Rxf1+ {[%clk 0:00:49.1]} 35. Qxf1 {[%clk 0:00:28.5]} 35... Qe5
{[%clk 0:00:47]} 36. Qh3 {[%clk 0:00:27.4]} 36... Qxe4 {[%clk 0:00:44.5]} 37.
Qc8 {[%clk 0:00:27.9]} 37... c5 {[%clk 0:00:36.3]} 38. Qc7+ {[%clk 0:00:27.6]}
38... Ke6 {[%clk 0:00:36.1]} 39. Qc8+ {[%clk 0:00:28.3]} 39... Ke5 {[%clk
0:00:35.4]} 40. Qe8+ {[%clk 0:00:28.5]} 40... Kd4 {[%clk 0:00:24.7]} 41. Qxf7
{[%clk 0:00:28.6]} 41... g4 {[%clk 0:00:25.3]} 42. Qf6+ {[%clk 0:00:26.2]} 42...
Qe5 {[%clk 0:00:21.4]} 43. Qf2+ {[%clk 0:00:24.3]} 43... Kd3 {[%clk 0:00:17.1]}
44. Qf1+ {[%clk 0:00:21.3]} 44... Qe2 {[%clk 0:00:17.4]} 45. Qf5+ {[%clk
0:00:21.9]} 45... Kd2 {[%clk 0:00:17.6]} 46. Qd5+ {[%clk 0:00:21.4]} 46... Ke1
{[%clk 0:00:15.7]} 47. Qh1+ {[%clk 0:00:18.8]} 47... Kf2 {[%clk 0:00:14.9]} 48.
Qh2+ {[%clk 0:00:17.9]} 48... Kf3 {[%clk 0:00:15.2]} 49. Qxd6 {[%clk 0:00:17.6]}
49... g3 {[%clk 0:00:14.7]} 50. Qd5+ {[%clk 0:00:17]} 50... Kg4 {[%clk
0:00:13.4]} 51. Qxc5 {[%clk 0:00:10.7]} 51... g2 {[%clk 0:00:13.4]} 52. Ka2
{[%clk 0:00:11.1]} 52... Kh3 {[%clk 0:00:12.5]} 53. Qf5+ {[%clk 0:00:09.2]}
53... Qg4 {[%clk 0:00:12.7]} 54. Qh7+ {[%clk 0:00:08.4]} 54... Kg3 {[%clk
0:00:13]} 55. Qd3+ {[%clk 0:00:08.4]} 55... Kf2 {[%clk 0:00:13]} 56. Qd2+ {[%clk
0:00:08]} 56... Qe2 {[%clk 0:00:12.9]} 57. Qf4+ {[%clk 0:00:08.1]} 57... Ke1
{[%clk 0:00:11.9]} 58. Qc1+ {[%clk 0:00:07.9]} 58... Kf2 {[%clk 0:00:12]} 59.
Qf4+ {[%clk 0:00:08.3]} 59... Qf3 {[%clk 0:00:12.7]} 60. Qd2+ {[%clk 0:00:08.5]}
60... Kg3 {[%clk 0:00:12.2]} 61. Qg5+ {[%clk 0:00:08.6]} 61... Qg4 {[%clk
0:00:12.5]} 62. Qe3+ {[%clk 0:00:08.8]} 62... Kh2 {[%clk 0:00:12.5]} 63. Qh6+
{[%clk 0:00:09.1]} 63... Kg3 {[%clk 0:00:10.8]} 64. Qe3+ {[%clk 0:00:08.9]}
64... Kh2 {[%clk 0:00:09.1]} 65. Qh6+ {[%clk 0:00:09.1]} 65... Qh3 {[%clk
0:00:07.9]} 66. Qf4+ {[%clk 0:00:09.1]} 66... Kh1 {[%clk 0:00:08.2]} 67. Qe4
{[%clk 0:00:09.7]} 67... b6 {[%clk 0:00:06.8]} 68. a4 {[%clk 0:00:09.8]} 68...
a5 {[%clk 0:00:06.5]} 69. Qd5 {[%clk 0:00:08.4]} 69... Qg4 {[%clk 0:00:06]} 70.
Ka3 {[%clk 0:00:05.2]} 70... Kh2 {[%clk 0:00:05.5]} 71. Qd2 {[%clk 0:00:03]}
71... Qf3+ {[%clk 0:00:03.1]} 72. b3 {[%clk 0:00:03.2]} 72... Kg3 {[%clk
0:00:03.3]} 73. Qg5+ {[%clk 0:00:03.3]} 73... Kf2 {[%clk 0:00:03.6]} 74. Qd2+
{[%clk 0:00:03.4]} 74... Qe2 {[%clk 0:00:03.8]} 75. Qd4+ {[%clk 0:00:03.7]}
75... Qe3 {[%clk 0:00:04]} 76. Qf6+ {[%clk 0:00:03.8]} 76... Ke2 {[%clk
0:00:03.2]} 77. Qb2+ {[%clk 0:00:03.9]} 77... Kd3 {[%clk 0:00:02.8]} 78. Qb1+
{[%clk 0:00:04.1]} 78... Kd4 {[%clk 0:00:03.2]} 79. Qb2+ {[%clk 0:00:04.3]}
79... Kd3 {[%clk 0:00:01]} 80. Qxg2 {[%clk 0:00:04.7]} 80... Qc5+ {[%clk
0:00:01.6]} 81. Ka2 {[%clk 0:00:04.7]} 1-0

[Event "Late-Titled-Tuesday-Blitz-August-29-2023"]
[Site "Chess.com"]
[Date "2023.08.29"]
[Round "8"]
[White "19912131712118"]
[Black "wgraif"]
[Result "1/2-1/2"]
[WhiteElo "2423"]
[BlackElo "2531"]
[TimeControl "180+1"]
[EndTime "15:29:18 PDT"]
[Termination "Game drawn by repetition"]

1. e4 {[%clk 0:02:55.7]} 1... e5 {[%clk 0:02:58.4]} 2. Nf3 {[%clk 0:02:54.5]}
2... Bc5 {[%clk 0:02:59]} 3. Bc4 {[%clk 0:02:51.2]} 3... Nf6 {[%clk 0:02:58.8]}
4. d3 {[%clk 0:02:45.8]} 4... Nc6 {[%clk 0:02:58.1]} 5. c3 {[%clk 0:02:45.4]}
5... d6 {[%clk 0:02:52.1]} 6. O-O {[%clk 0:02:44]} 6... a6 {[%clk 0:02:49.3]} 7.
a4 {[%clk 0:02:39.8]} 7... Ba7 {[%clk 0:02:47.4]} 8. Nbd2 {[%clk 0:02:36.1]}
8... O-O {[%clk 0:02:41.9]} 9. h3 {[%clk 0:02:32.6]} 9... Kh8 {[%clk 0:02:21.9]}
10. Re1 {[%clk 0:02:25.1]} 10... Be6 {[%clk 0:02:16.2]} 11. b4 {[%clk
0:02:21.9]} 11... Ne7 {[%clk 0:02:00.7]} 12. Qb3 {[%clk 0:02:15]} 12... Qd7
{[%clk 0:01:50]} 13. d4 {[%clk 0:02:07.9]} 13... Bxc4 {[%clk 0:01:43.2]} 14.
Nxc4 {[%clk 0:02:02.8]} 14... exd4 {[%clk 0:01:34.4]} 15. cxd4 {[%clk
0:02:03.7]} 15... d5 {[%clk 0:01:24.1]} 16. Nce5 {[%clk 0:02:02.7]} 16... Qd8
{[%clk 0:01:10.5]} 17. Ng5 {[%clk 0:01:59.1]} 17... Kg8 {[%clk 0:01:04.6]} 18.
Bb2 {[%clk 0:01:56.7]} 18... c6 {[%clk 0:00:35.2]} 19. Rad1 {[%clk 0:01:50.8]}
19... Nxe4 {[%clk 0:00:27.2]} 20. Nxe4 {[%clk 0:01:50]} 20... dxe4 {[%clk
0:00:26.5]} 21. Rxe4 {[%clk 0:01:50.1]} 21... Qd5 {[%clk 0:00:23.8]} 22. Qc2
{[%clk 0:01:45.2]} 22... Ng6 {[%clk 0:00:22.8]} 23. Nxg6 {[%clk 0:01:39.4]}
23... fxg6 {[%clk 0:00:21.4]} 24. Re5 {[%clk 0:01:39.8]} 24... Qf7 {[%clk
0:00:18.1]} 25. Rd3 {[%clk 0:01:32.5]} 25... Rad8 {[%clk 0:00:17.9]} 26. Rf3
{[%clk 0:01:31.8]} 26... Qd7 {[%clk 0:00:15.7]} 27. Qc4+ {[%clk 0:01:29.7]}
27... Kh8 {[%clk 0:00:15.4]} 28. Rxf8+ {[%clk 0:01:14.9]} 28... Rxf8 {[%clk
0:00:15.4]} 29. Qe6 {[%clk 0:01:12.6]} 29... Qxe6 {[%clk 0:00:13.5]} 30. Rxe6
{[%clk 0:01:13.5]} 30... Kg8 {[%clk 0:00:12.1]} 31. f3 {[%clk 0:01:06.3]} 31...
Kf7 {[%clk 0:00:11.9]} 32. Re4 {[%clk 0:01:02.4]} 32... g5 {[%clk 0:00:10.7]}
33. Kf1 {[%clk 0:01:01.8]} 33... g6 {[%clk 0:00:09.1]} 34. Ke2 {[%clk
0:01:01.9]} 34... Rd8 {[%clk 0:00:07.6]} 35. Kd3 {[%clk 0:01:01.8]} 35... Rd5
{[%clk 0:00:06.7]} 36. h4 {[%clk 0:00:57.6]} 36... gxh4 {[%clk 0:00:06]} 37.
Rxh4 {[%clk 0:00:58.5]} 37... h5 {[%clk 0:00:06.4]} 38. g4 {[%clk 0:00:55.8]}
38... Bb8 {[%clk 0:00:06.3]} 39. gxh5 {[%clk 0:00:53.7]} 39... gxh5 {[%clk
0:00:07.2]} 40. Ke4 {[%clk 0:00:52.4]} 40... Bg3 {[%clk 0:00:06.7]} 41. Rh3
{[%clk 0:00:50.3]} 41... h4 {[%clk 0:00:07.3]} 42. Bc1 {[%clk 0:00:49.9]} 42...
Kg6 {[%clk 0:00:07.1]} 43. Be3 {[%clk 0:00:49]} 43... Rd8 {[%clk 0:00:06.9]} 44.
Bf4 {[%clk 0:00:45.4]} 44... Re8+ {[%clk 0:00:07]} 45. Be5 {[%clk 0:00:45.3]}
45... Kg5 {[%clk 0:00:06.2]} 46. Rh1 {[%clk 0:00:41.6]} 46... Re7 {[%clk
0:00:04.2]} 47. Rg1 {[%clk 0:00:38.8]} 47... Kh5 {[%clk 0:00:02.7]} 48. Kf5
{[%clk 0:00:34.6]} 48... Bxe5 {[%clk 0:00:02.2]} 49. dxe5 {[%clk 0:00:32.7]}
49... h3 {[%clk 0:00:03.1]} 50. Kf6 {[%clk 0:00:27.2]} 50... Rh7 {[%clk
0:00:02.8]} 51. e6 {[%clk 0:00:25.6]} 51... Kh4 {[%clk 0:00:02.5]} 52. Rg4+
{[%clk 0:00:25]} 52... Kh5 {[%clk 0:00:02.4]} 53. Rg5+ {[%clk 0:00:25.1]} 53...
Kh4 {[%clk 0:00:01.9]} 54. Rg4+ {[%clk 0:00:25.5]} 54... Kh5 {[%clk 0:00:02.6]}
55. Rg1 {[%clk 0:00:26.3]} 55... Kh4 {[%clk 0:00:02.2]} 56. e7 {[%clk
0:00:25.6]} 56... Rh8 {[%clk 0:00:02.3]} 57. Rg4+ {[%clk 0:00:24.5]} 57... Kh5
{[%clk 0:00:02.7]} 58. Rg1 {[%clk 0:00:23.4]} 58... Kh4 {[%clk 0:00:03.1]} 59.
Kf7 {[%clk 0:00:23.4]} 59... h2 {[%clk 0:00:03.3]} 60. Rh1 {[%clk 0:00:23.2]}
60... Kg3 {[%clk 0:00:04]} 61. e8=Q {[%clk 0:00:22.5]} 61... Rxe8 {[%clk
0:00:04.6]} 62. Kxe8 {[%clk 0:00:22.9]} 62... b6 {[%clk 0:00:05.4]} 63. Rxh2
{[%clk 0:00:19.1]} 63... Kxh2 {[%clk 0:00:05.2]} 64. f4 {[%clk 0:00:19.7]} 64...
c5 {[%clk 0:00:05.8]} 65. bxc5 {[%clk 0:00:18.7]} 65... bxc5 {[%clk 0:00:06.7]}
66. f5 {[%clk 0:00:19.1]} 66... c4 {[%clk 0:00:07.4]} 67. f6 {[%clk 0:00:19.8]}
67... c3 {[%clk 0:00:08.3]} 68. f7 {[%clk 0:00:20.3]} 68... c2 {[%clk
0:00:09.2]} 69. f8=Q {[%clk 0:00:20.7]} 69... c1=Q {[%clk 0:00:10.1]} 70. Qe7
{[%clk 0:00:19.4]} 70... Qc8+ {[%clk 0:00:06.5]} 71. Kf7 {[%clk 0:00:18.2]}
71... Qc4+ {[%clk 0:00:05.7]} 72. Qe6 {[%clk 0:00:14.5]} 72... Qxa4 {[%clk
0:00:06.1]} 73. Qe2+ {[%clk 0:00:13.8]} 73... Kg3 {[%clk 0:00:06.2]} 74. Qe3+
{[%clk 0:00:14]} 74... Kg2 {[%clk 0:00:05.9]} 75. Qe2+ {[%clk 0:00:14.2]} 75...
Kg3 {[%clk 0:00:06.1]} 76. Qe3+ {[%clk 0:00:14.7]} 76... Kg4 {[%clk 0:00:06.8]}
77. Qe6+ {[%clk 0:00:14.4]} 77... Kf3 {[%clk 0:00:06.1]} 78. Qd5+ {[%clk
0:00:13.1]} 78... Ke3 {[%clk 0:00:05.9]} 79. Qe6+ {[%clk 0:00:10.8]} 79... Kd3
{[%clk 0:00:05.9]} 80. Qd6+ {[%clk 0:00:09.5]} 80... Kc3 {[%clk 0:00:05.9]} 81.
Qe5+ {[%clk 0:00:09.7]} 81... Kb3 {[%clk 0:00:05.8]} 82. Qe3+ {[%clk 0:00:09.9]}
82... Kb2 {[%clk 0:00:05.3]} 83. Qd2+ {[%clk 0:00:10.1]} 83... Kb3 {[%clk
0:00:04.3]} 84. Qd3+ {[%clk 0:00:09.8]} 84... Kb4 {[%clk 0:00:04.3]} 85. Qd4+
{[%clk 0:00:08.7]} 85... Ka3 {[%clk 0:00:04.9]} 86. Qc5+ {[%clk 0:00:08.2]}
86... Qb4 {[%clk 0:00:04]} 87. Qc1+ {[%clk 0:00:07.8]} 87... Qb2 {[%clk
0:00:03.6]} 88. Qc5+ {[%clk 0:00:07.5]} 88... Qb4 {[%clk 0:00:03.4]} 89. Qc1+
{[%clk 0:00:07.5]} 89... Ka2 {[%clk 0:00:04.1]} 90. Qc2+ {[%clk 0:00:06.6]}
90... Ka3 {[%clk 0:00:04.7]} 91. Qc1+ {[%clk 0:00:06.7]} 1/2-1/2